{"text_format":"3","workbook":"xlsx","n_sheets":3,"sheets":["LHF-C","Translation","Selections"],"not_rendered":{"images":6,"defined_names":1},"read":"whole","date_system":"1900"}

{"sheet":"LHF-C","index":0,"n_rows":67,"n_cols":27,"rows_kept":67,"merged":[[1,9,2,9],[1,18,2,18],[1,25,2,25],[2,10,3,11],[3,3,4,3],[3,9,4,9],[3,18,4,18],[3,25,4,25],[5,9,6,10],[5,18,6,18],[5,25,6,25],[7,18,8,18],[7,25,8,25],[10,0,10,1],[11,6,12,6],[12,8,13,8],[13,12,14,12],[14,3,15,4],[14,13,15,13],[20,2,21,2],[30,16,36,16],[31,20,33,26],[32,15,36,15],[33,6,36,6],[33,10,36,10],[33,11,36,11],[33,12,36,12],[36,18,36,19],[36,20,37,20],[36,21,37,21],[36,22,36,24],[36,25,36,26],[38,21,44,21],[38,22,44,22],[38,23,44,23],[38,24,44,24],[38,25,44,25],[38,26,44,26],[48,18,48,25],[49,18,49,19],[49,20,49,21],[49,22,49,23],[49,24,49,25],[51,20,54,20],[51,21,52,21],[51,22,57,23],[51,24,54,24],[51,25,52,25],[53,21,57,21],[53,25,57,25],[55,20,57,20],[55,24,57,24],[61,22,61,26],[62,22,64,26]]}
[]
["Zvolte jazyk",{"$nulls":7},{"$f":"Translation!B37","v":"Opening width (W) [mm]"},{"$nulls":8},{"$f":"Translation!B13","v":"Back room (D) [mm]"},{"$f":"IF(J4=\"\",\"\",VLOOKUP(J4,Selections!E5:F11,2,TRUE))","v":""},{"$nulls":5},{"$f":"Translation!B43","v":"Type of motor"}]
["Select a language",{"$nulls":9},{"$f":"IF(J2/1000*J4/1000<14,\"\",\"W x H max. 14m2\")","v":""}]
["Wählen Sie eine Sprache:",null,null,"EN",{"$nulls":4},{"$f":"Translation!B27","v":"Clear opening height (H) [mm]"},{"$nulls":8},{"$f":"Translation!B17","v":"Bottom edge of horizontal tracks (K) [mm]"},{"$f":"IF(J4=\"\",\"\",J4-47)","v":""},{"$nulls":5},{"$f":"Translation!B15","v":"Length of motor (X) [mm]"},{"$f":"IF(Z2=\"\",\"\",IF(Z2=Selections!K5,VLOOKUP(J4,Selections!K6:L7,2,TRUE),IF(Z2=Selections!K9,VLOOKUP(J4,Selections!K10:L11,2,TRUE),\"Error\")))","v":""}]
["Wybierz język:"]
["Sélectionner une langue:",{"$nulls":7},{"$f":"Translation!B38","v":"Operated"},{"$nulls":8},{"$f":"Translation!B11","v":"Bottom edge of fully open door (CPH) [mm]"},{"$f":"IF(J6=\"\",\"\",IF(J6=Selections!C5,'LHF-C'!J4-175,IF(J6=Selections!C6,'LHF-C'!J4-0,\"Error\")))","v":""},{"$nulls":5},{"$f":"Translation!B19","v":"Hanging point for motor track (E1) [mm]"},{"$f":"IF(Z2=\"\",\"\",1400)","v":""}]
["Kies een taal:"]
[{"$nulls":17},{"$f":"Translation!B42","v":"Height of lintel (F) [mm]"},200,{"$nulls":5},{"$f":"Translation!B21","v":"Hanging point for motor (E2) [mm]"},{"$f":"IF(Z2=\"\",\"\",IF(Z2=Selections!N5,VLOOKUP(J4,Selections!N6:O7,2,TRUE),IF(Z2=Selections!N9,VLOOKUP(J4,Selections!N10:O11,2,TRUE),\"Error\")))","v":""}]
[]
[]
["  Z",{"$nulls":4},{"$f":"IF(OR(J4=\"\",Z2=\"\"),\"X\",\"X = \"&Z4)","v":"X"}]
[{"$nulls":6},{"$f":"IF(OR(J4=\"\",Z2=\"\"),\"E2\",\"E2 = \"&Z8)","v":"E2"}]
[{"$nulls":8},{"$f":"IF(J4=\"\",\"D\",\"D = \"&S2)","v":"D"}]
[{"$nulls":12},{"$f":"IF(OR(J4=\"\",Z2=\"\"),\"E1\",\"E1 = \"&Z6)","v":"E1"}]
[{"$nulls":3},"    Y1 = 400",{"$nulls":9},{"$f":"IF(OR(J2>3000,J4>2500),\"Y2 = 800\",\"Y2\")","v":"Y2"}]
[]
[]
[]
[{"$nulls":19},"W",{"$f":"Translation!B36","v":"Opening width [mm]"}]
[{"$nulls":19},"H",{"$f":"Translation!B26","v":"Clear opening height [mm]"}]
[null,null,212,{"$nulls":16},"D",{"$f":"Translation!B12","v":"Back room [mm]"}]
[{"$nulls":19},"K",{"$f":"Translation!B16","v":"Bottom edge of horizontal tracks [mm]"}]
[{"$nulls":15},"H",{"$nulls":3},"F",{"$f":"Translation!B41","v":"Height of lintel [mm]"}]
[null,null,{"$f":"Translation!B34","v":"CEE 7/3 or CEE 7/5 socket"},{"$nulls":16},"CEL",{"$f":"Translation!B8","v":"Height of ceiling [mm]"}]
[null,null,{"$f":"Translation!B35","v":"230V, 50Hz, protect by 6 A (10 A) circuit breaker"},{"$nulls":16},"CPH*",{"$f":"Translation!B10","v":"Bottom edge of fully open door [mm]"}]
[{"$nulls":19},"Y1",{"$f":"Translation!B22","v":"Hanging point"}]
[{"$nulls":12},500,{"$nulls":6},"Y2",{"$f":"Translation!B23","v":"Hanging point (W>3000 or H>2500)"}]
[{"$nulls":19},"X",{"$f":"Translation!B14","v":"Length of motor [mm]"}]
[{"$nulls":19},"E1",{"$f":"Translation!B18","v":"Hanging point for motor track [mm]"}]
[{"$nulls":19},"E2",{"$f":"Translation!B20","v":"Hanging point for motor [mm]"}]
[{"$nulls":16},{"$f":"IF(J4=\"\",\"min. CEL = H + 200\",\"CEL = \"&J4+S8)","v":"min. CEL = H + 200"},null,null,"Z",{"$f":"Translation!B33","v":"Position of socket, ca. 250 mm"}]
[{"$nulls":19},"*1",{"$f":"Translation!B50","v":"clear height could be decreased by accessories installed on inner side of door leaf (handgrip, reinforcing strut etc.)"}]
[{"$nulls":15},{"$f":"IF(J4=\"\",\"CPH\",\"CPH = \"&S6)","v":"CPH"}]
[{"$nulls":6},{"$f":"IF(J4=\"\",\"H - 87\",J4-87)","v":"H - 87"},{"$nulls":3},{"$f":"IF(J4=\"\",\"K = H - 47\",\"K = \"&J4-47)","v":"K = H - 47"},null,{"$f":"IF(J4=\"\",\"H - 415\",J4-415)","v":"H - 415"}]
[{"$nulls":19},"*2",{"$f":"Translation!B51","v":"when door stopper is used"}]
[]
[{"$nulls":18},"H",null,"D","K",{"$f":"Translation!B6","v":"Manually operated"},null,null,{"$f":"Translation!B7","v":"Electrically operated"}]
[{"$nulls":18},">","<=",null,null,"min. CEL","CPH*1","CPH*1 *2",{"$f":"W38","v":"min. CEL"},"CPH*1"]
[{"$nulls":19},2000,{"$f":"T39+575","v":2575},"H - 47","H + 200","H - 175","H","H + 200","H"]
[{"$nulls":18},{"$f":"T39+1","v":2001},2125,{"$f":"T40+575","v":2700}]
[{"$nulls":18},{"$f":"T40+1","v":2126},2250,2825]
[{"$nulls":18},2251,2375,2950]
[{"$nulls":18},2376,2500,3075]
[{"$nulls":18},2501,2750,3325]
[{"$nulls":18},2751,3000,3575]
[]
[]
[{"$nulls":13},150]
[{"$nulls":18},{"$f":"Translation!B44","v":"Information regarding motor"}]
[{"$nulls":18},"H",null,"X",null,"E1",null,"E2"]
[{"$nulls":18},">","<=","Black","RUN 600",{"$f":"U51","v":"Black"},{"$f":"V51","v":"RUN 600"},{"$f":"W51","v":"Black"},{"$f":"X51","v":"RUN 600"}]
[{"$nulls":19},2000,3540,3100,1400,null,3265,2950]
[null,{"$f":"Translation!B52","v":"Min. load capacity of ceiling/max. weight per hanging point: 100 kg"},{"$nulls":16},{"$f":"T52+1","v":2001},2125]
[{"$nulls":18},{"$f":"T53+1","v":2126},2250,null,{"$f":"U56","v":4240},{"$nulls":3},4060]
[">=90",{"$nulls":4},"W",{"$nulls":5},"  >=90",{"$nulls":6},2251,2375]
[{"$nulls":18},2376,2500,4240,{"$nulls":3},3975]
[{"$nulls":18},2501,2750]
[{"$nulls":13},54,{"$nulls":4},2751,3000]
[]
[]
[]
[{"$nulls":22},"https://www.door-documents.com/en/installation-drawing-lhf-c"]
[{"$nulls":22},"Guardy LHF-C"]
[]
[]
[{"$nulls":25},{"$f":"Translation!B31","v":"Version:"},{"$f":"Translation!B32","v":"Sheet:"}]
[{"$nulls":25},1850,"A4"]

{"sheet":"Translation","index":1,"n_rows":52,"n_cols":10,"rows_kept":52,"hidden":true}
[null,"LHF-C"]
[null,{"$f":"IF('LHF-C'!D4=E2,1,IF('LHF-C'!D4=F2,2,IF('LHF-C'!D4=G2,3,IF('LHF-C'!D4=H2,4,IF('LHF-C'!D4=I2,5,IF('LHF-C'!D4=J2,6,\"Chyba\"))))))","v":2},null,null,"CZ","EN","DE","PL","FR","NL"]
[null,{"$f":"VLOOKUP(E3,E:J,$B$2,FALSE)","v":"General"},null,null,"Obecná","General","Allgemeine","Ogólna ","Hauteur","Algemene"]
[null,"height [mm]",null,null,"výška [mm]","height [mm]","Höhe [mm]","wysokość [mm]","Générale [mm]","hoogte [mm]"]
[null,"Min. height of ceiling [mm]",null,null,"Min. výška stropu [mm]","Min. height of ceiling [mm]","Min. Deckenhöhe [mm]","Min wysokość stropu [mm]","Hauteur minimale du plafond [mm]","Min. plafondhoogte [mm]"]
[null,"Manually operated",null,null,"Vrata bez motoru","Manually operated","Tor ohne Motor","Brama bez napędu","Porte sans moteur","Deur zonder motor"]
[null,"Electrically operated",null,null,"Vrata s motorem","Electrically operated","Tor mit Motor","Brama z napędem","Porte avec moteur","Garaged. met motor"]
[null,"Height of ceiling [mm]",null,null,"Výška stropu [mm]","Height of ceiling [mm]","Deckenhöhe [mm]","Wysokość stropu [mm]","Hauteur du plafond [mm]","Plafondhoogte [mm]"]
[null,"Height to bottom edge of lintel profile [mm]",null,null,"Výška ke spodní hraně překladového profilu [mm]","Height to bottom edge of lintel profile [mm]","Höhe zur unteren Kante des Sturzprofiles [mm]","Wysokość do dolnej krawędzi profilu nadproża [mm]","Hauteur jusqu'à l'arête inférieure du profilé de linteau [mm]","Hoogte vanaf de onderrand van het dwarsbalkprofiel [mm]"]
[null,"Bottom edge of fully open door [mm]",null,null,"Spodní hrana plně otevřených vrat [mm]","Bottom edge of fully open door [mm]","Untere Kante des vollständig geöffneten Tors [mm]","Dolna krawędź w pełni otwartej bramy [mm]","Arête inférieure de la porte toute ouverte [mm]","Onderste rand van een volledig geopende deur [mm]"]
[null,"Bottom edge of fully open door (CPH) [mm]",null,null,"Spodní hrana plně otevřených vrat (CPH) [mm]","Bottom edge of fully open door (CPH) [mm]","Untere Kante des vollständig geöffneten Tors (CPH) [mm]","Dolna krawędź w pełni otwartej bramy (CPH) [mm]","Arête inférieure de la porte toute ouverte (CPH) [mm]","Onderste rand van een volledig geopende deur (CPH) [mm]"]
[null,"Back room [mm]",null,null,"Hloubka vedení [mm]","Back room [mm]","Führungstiefe [mm]","Głębokość prowadzenia [mm]","Profondeur du guidage [mm]","Inbouwdiepte van de rails [mm]"]
[null,"Back room (D) [mm]",null,null,"Hloubka vedení (D) [mm]","Back room (D) [mm]","Führungstiefe (D) [mm]","Głębokość prowadzenia (D) [mm]","Profondeur du guidage (D) [mm]","Diepte van de geleidingsrail (D) [mm]"]
[null,"Length of motor [mm]",null,null,"Délka pohonu [mm]","Length of motor [mm]","Antriebslänge [mm]","Długość napędu [mm]","Longueur de la propulsion [mm]","Inbouwdiepte incl. de aandrijving [mm]"]
[null,"Length of motor (X) [mm]",null,null,"Délka pohonu (X) [mm]","Length of motor (X) [mm]","Antriebslänge (X) [mm]","Długość napędu (X) [mm]","Longueur de la propulsion (X) [mm]","Inbouwdiepte incl. de aandrijving (X) [mm]"]
[null,"Bottom edge of horizontal tracks [mm]",null,null,"Spodní hrana horizontálního vedení [mm]","Bottom edge of horizontal tracks [mm]","Untere Kante der Horizontalführung [mm]","Dolna krawędź prowadzenia poziomego [mm]","Arête inférieure du guidage horizontale [mm]","Onderste rand van de horizontale rails [mm]"]
[null,"Bottom edge of horizontal tracks (K) [mm]",null,null,"Spodní hrana horizontálního vedení (K) [mm]","Bottom edge of horizontal tracks (K) [mm]","Untere Kante der Horizontalführung (K) [mm]","Dolna krawędź prowadzenia poziomego (K) [mm]","Arête inférieure du guidage horizontale (K) [mm]","Onderste rand van de horizontale rails (K) [mm]"]
[null,"Hanging point for motor track [mm]",null,null,"Kotvící bod lišty pohonu [mm]","Hanging point for motor track [mm]","Verankerungspunkt der Antriebsleiste [mm]","Punkt uchwycenia szyny napędu [mm]","Point d'ancrage de la glissière de propulsion [mm]","Bevestigingspunt van de motorgeleidingsrail [mm]"]
[null,"Hanging point for motor track (E1) [mm]",null,null,"Kotvící bod lišty pohonu (E1) [mm]","Hanging point for motor track (E1) [mm]","Verankerungspunkt der Antriebsleiste (E1) [mm]","Punkt uchwycenia szyny napędu (E1) [mm]","Point d'ancrage de la glissière de propulsion (E1) [mm]","Bevestigingspunt van de motorgeleidingsrail (E1) [mm]"]
[null,"Hanging point for motor [mm]",null,null,"Kotvící bod pohonu [mm]","Hanging point for motor [mm]","Verankerungspunkt des Antriebes [mm]","Punkt uchwycenia napędu [mm]","Point d'ancrage de la propulsion [mm]","Bevestigingspunt van de aandrijvingsgeleidingsbalk [mm]"]
[null,"Hanging point for motor (E2) [mm]",null,null,"Kotvící bod pohonu (E2) [mm]","Hanging point for motor (E2) [mm]","Verankerungspunkt des Antriebes (E2) [mm]","Punkt uchwycenia napędu (E2) [mm]","Point d'ancrage de la propulsion (E2) [mm]","Bevestigingsp. van de aandrijvingsgeleidingsbalk (E2) [mm]"]
[null,"Hanging point",null,null,"Kotvící bod","Hanging point","Verankerungspunkt","Punkt uchwycenia","Point d'ancrage","Bevestigingspunt"]
[null,"Hanging point (W>3000 or H>2500)",null,null,"Kotvící bod (W>3000 nebo H>2500)","Hanging point (W>3000 or H>2500)","Verankerungspunkt (W>3000 oder H>2500)","Punkt uchwycenia (W>3000 lub H>2500)","Point d'ancrage (W>3000 ou H>2500)","Bevestigingspunt (W>3000 of H>2500)"]
[null,"Standard installation",null,null,"Standardní montáž","Standard installation","Standardmontage","Instalacja standardowa","Assemblage standard","Standaardmontage"]
[null,"Alternative installation",null,null,"Alternativní montáž","Alternative installation","Alternative Montage","Instalacja alternatywna","Assemblage alternatif ","Alternatieve montage"]
[null,"Clear opening height [mm]",null,null,"Výška stavebního otvoru [mm]","Clear opening height [mm]","Höhe der Bauöffnung [mm]","Wysokość otworu budowlanego [mm]","Hauteur de la baie de construction [mm]","Dagmaat hoogte [mm]"]
[null,"Clear opening height (H) [mm]",null,null,"Výška stavebního otvoru (H) [mm]","Clear opening height (H) [mm]","Höhe der Bauöffnung (H) [mm]","Wysokość otworu budowlanego (H) [mm]","Hauteur de la baie de construction (H) [mm]","Dagmaat hoogte (H) [mm]"]
[null,"Standard situation",null,null,"Standardní situace","Standard situation","Standardsituation","Sytuacja standardowa","Situation standard","Standaardsituatie"]
[null,"Non-standard situation",null,null,"Nestandardní situace","Non-standard situation","Ungewöhnliche Situation","Sytuacja niestandardowa","Situation hors de standard","Niet-standaardsituaties"]
[null,"Panel assembly and design of door leaf is always considered based on FOH.",null,null,"Skladba panelů a design křídla je vždy řešen vůči FOH.","Panel assembly and design of door leaf is always considered based on FOH.","Die Paneelaufteilung und das Design des Torblattes wird immer auf der Basis von FOH-Mass gelöst.","Skład paneli i konstrukcja skrzydła jest zawsze rozpatrywane na podstawie FOH.","Assemblage de panneau et la conception de battant de porte est toujours considéré comme la base de FOH.","Paneel samenstelling en complete opbouw van het deurblad wordt altijd  gebaseerd op FOH."]
[null,"Version:",null,null,"Verze:","Version:","Version:","Wersja:","VERSION:","Versie:"]
[null,"Sheet:",null,null,"Formát:","Sheet:","Format:","Format:","FORMAT:","Formaat:"]
[null,"Position of socket, ca. 250 mm",null,null,"Pozice zásuvky, cca. 250 mm","Position of socket, ca. 250 mm","Die Position der Steckdose ca.250 mm","Położenie gniazda około 250 mm","La position de la prise électrique env. 250 mm","Positie van Eurostopcontact CEE, ca. 250mm"]
[null,"CEE 7/3 or CEE 7/5 socket",null,null,"Zásuvka typu CEE 7/3 nebo CEE 7/5","CEE 7/3 or CEE 7/5 socket","Steckdose CEE 7/3 oder CEE 7/5","Gniazdo CEE 7/3 lub CEE 7/5","Prise CEE 7/3 ou CEE 7/5","Eurostopcontact CEE 7/3 of CEE 7/5"]
[null,"230V, 50Hz, protect by 6 A (10 A) circuit breaker",null,null,"230V, 50Hz, jištěno 6 A (10 A) jističem","230V, 50Hz, protect by 6 A (10 A) circuit breaker","230V, 50Hz, Sicherung 6 A (10 A) mit Schutzschalter","230V, 50Hz, ochrona za pomocą bezpiecznika 6A (10A)","230V, 50Hz, assuré par un disjoncteur 6 A (10 A)","230V, 50Hz, afgezekerd met 6A (10A)"]
[null,"Opening width [mm]",null,null,"Šířka stavebního otvoru [mm]","Opening width [mm]","Lichte Breite [mm]","Szerokość otworu [mm]","Largeur de baie [mm]","Opening breedte "]
[null,"Opening width (W) [mm]",null,null,"Šířka stavebního otvoru (W) [mm]","Opening width (W) [mm]","Lichte Breite (W) [mm]","Szerokość otworu (W) [mm]","Largeur de baie (W) [mm]","Opening breedte (W) [mm]"]
[null,"Operated",null,null,"Ovládání","Operated","Bedienung","Sterowanie","Commande","Bediening"]
[null,"manually",null,null,"ručně","manually","händisch","ręcznie wykonany","manuelle","handbediend"]
[null,"electrical ",null,null,"elektricky","electrical ","elektrisch","elektrycznie","motorisée","elektrisch"]
[null,"Height of lintel [mm]",null,null,"Výška nádpraží [mm]","Height of lintel [mm]","Freiraum über Sturz [mm]","Wysokość nadproża [mm]","Retombée de linteau [mm]","Hoogte van de latei [mm]"]
[null,"Height of lintel (F) [mm]",null,null,"Výška nádpraží (F) [mm]","Height of lintel (F) [mm]","Freiraum über Sturz (F) [mm]","Wysokość nadproża (F) [mm]","Retombée de linteau (F) [mm]","Hoogte van de latei (F) [mm]"]
[null,"Type of motor",null,null,"Typ pohonu","Type of motor","Der Typ des Antriebs","Rodzaj napędu","Type de motor","Type motor"]
[null,"Information regarding motor",null,null,"Informace o motoru","Information regarding motor","Die Information über den Antrieb","Informacje o napędu","Information concernant le moteur","Informatie betreffende de motor"]
[null,"Placement of top sealing",null,null,"Umístění horního těsnění","Placement of top sealing","Die Unterbringung der Oberdichtung","Umieszczenie górnego uszczelnienia","Emplacement du joint d'étanchéité","Plaatsing van de top afdichting"]
[null,"at lintel",null,null,"na překladu","at lintel","Auf dem Sturz ","Na nadprožu","au linteau","op de latei"]
[null,"on the top section",null,null,"na horní sekci","on the top section","Auf der Obersektion","Na górnej częśći ","sur le panneau supérieur","boven op top paneel"]
[null,"Version of SL track system",null,null,"Verze SL vedení","Version of SL track system","Version der SL-Umlenkung","SL wersja","SL version","Versie van SL beslagsysteem"]
[null,"= set without pre-drilled holes in vertical angle; vertical angle in white color (RAL 9010)",null,null,"= sety bez předvrtaných otvorů ve svislém úhelníku; svislý úhelník v bílém provedení (RAL 9010)","= set without pre-drilled holes in vertical angle; vertical angle in white color (RAL 9010)","= Zargensätze ohne vorgeborte Löcher, Ausführung in RAL 9010","= zestawy bez wcześniej nawierconych otworów pod kątem pionowym, kąt pionowy w kolorze białym (RAL 9010)","= Le kit sans trou percé dans le cornier vertical, le cornier vertical en exécution blanc (RAL 9010)","= Set is zonder voorgeboorde gaten in verticale hoek; verticale hoek in kleur wit (RAL 9010)"]
[null,"clear height could be decreased by accessories installed on inner side of door leaf (handgrip, reinforcing strut etc.)",null,null,"průjezdná výška může být snížena příslušenstvím nainstalovaným na vnitřní straně vratového křídla (madlo, výztuha apod.)","clear height could be decreased by accessories installed on inner side of door leaf (handgrip, reinforcing strut etc.)","Durchfahrtshöhe kann bei der Montage der Zubehörteile an die Innenseite des Torflügels reduziert werden (betrifft Handgriff, Versteifungen, etc.)","wysokość prześwitu może zostać zmniejszona dzięki akcesoriom zainstalowanym po wewnętrznej stronie skrzydła drzwi (uchwyt, wzmocnienie itp.)","L´ouverture de passage peut être réduite par les accessoires installés en intérieur du vantail de porte (les poignées, les renforts etc.)","De hoogte van de vrije ruimte kan worden verlaagd door accessoires die aan de binnenkant van het deurblad zijn gemonteerd (handgreep, verstevigingsprofielen, enz.)"]
[null,"when door stopper is used",null,null,"při použití zarážky vratového křídla","when door stopper is used","bei der Verwendung der Toorflügelsperre","przy użyciu ogranicznika skrzydła bramy","avec la butée pour ventail de porte","wanneer de deurstopper wordt gebruikt"]
[null,"Min. load capacity of ceiling/max. weight per hanging point: 100 kg",null,null,"Minimální únosnost stropu/maximální zatížení v každém kotevním bodě: 100 kg","Min. load capacity of ceiling/max. weight per hanging point: 100 kg","Minimale Tragfähigkeit der Decke/maximale Belastung in jedem einzelnen Befestigungspunkt: 100kg","Minimalne obciążenie sufitu / maksymalne obciążenie w każdym punkcie uchwycenia: 100 kg","Capacité min.de charge du plafond / capacité max.de charge des points d´ancre : 100kg","Minimaal draagvermogen van plafond/maximaal gewicht per bevestigingspunt: 100kg"]

{"sheet":"Selections","index":2,"n_rows":49,"n_cols":17,"rows_kept":49,"hidden":true}
["Výběr jazyka",null,"LHF-C"]
["CZ"]
["EN",null,{"$f":"Translation!B38","v":"Operated"},null,"Hloubka vedení",{"$nulls":3},{"$f":"Translation!B43","v":"Type of motor"},null,"Délka pohonu",null,null,"Kotvící bod pohonu"]
["DE"]
["PL",null,{"$f":"Translation!B39","v":"manually"},null,0,{"$f":"2575","v":2575},null,null,"Black",null,{"$f":"I5","v":"Black"},null,null,{"$f":"I5","v":"Black"}]
["NL",null,{"$f":"Translation!B40","v":"electrical "},null,2001,2700,null,null,"RUN 600",null,0,3540,null,0,3265]
["FR",{"$nulls":3},2126,2825,{"$nulls":4},2376,4240,null,2376,3975]
[{"$nulls":4},2251,2950]
["Výběr uložení",{"$nulls":3},2376,3075,{"$nulls":4},{"$f":"I6","v":"RUN 600"},null,null,{"$f":"I6","v":"RUN 600"}]
["Ano",{"$nulls":3},2501,3325,{"$nulls":4},0,3100,null,0,2950]
["Ne",{"$nulls":3},2751,3575,{"$nulls":4},2126,4240,null,2126,4060]
[]
[null,null,"LHR-C"]
[]
[null,null,{"$f":"Translation!C38","v":0},null,"Hloubka vedení",{"$nulls":3},{"$f":"Translation!C43","v":0},null,"Délka pohonu",null,null,"Kotvící bod pohonu"]
[]
[null,null,{"$f":"Translation!C39","v":0},null,0,{"$f":"2575+120","v":2695},null,null,"Black",null,{"$f":"I17","v":"Black"},null,null,{"$f":"I17","v":"Black"}]
[null,null,{"$f":"Translation!C40","v":0},null,2001,{"$f":"2700+120","v":2820},null,null,"RUN 600",null,0,3540,null,0,3265]
[{"$nulls":4},2126,{"$f":"2825+120","v":2945},{"$nulls":4},2376,4240,null,2376,3975]
[null,null,"Umístění horního těsnění",null,2251,{"$f":"2950+120","v":3070},null,null,{"$f":"Translation!C42","v":0}]
[{"$nulls":4},2376,{"$f":"3075+120","v":3195},null,null,{"$f":"IF(H21=Selections!C17,90,IF(H21=Selections!C18,125,\"Error\"))","v":90},null,{"$f":"I18","v":"RUN 600"},null,null,{"$f":"I18","v":"RUN 600"}]
[null,null,{"$f":"Translation!C46","v":0},null,2501,{"$f":"3325+120","v":3445},null,null,{"$f":"IF(H22=Selections!C22,0,IF(H22=Selections!C23,35,\"Error\"))","v":0},null,0,3100,null,0,2950]
[null,null,{"$f":"Translation!C47","v":0},null,2751,{"$f":"3575+120","v":3695},{"$nulls":4},2126,4240,null,2126,4060]
[]
[null,null,"GV-SL"]
[]
[null,null,{"$f":"Translation!D38","v":0},{"$nulls":5},{"$f":"Translation!D43","v":0},null,"Délka pohonu",null,null,"Kotvící bod pohonu",null,null,{"$f":"Translation!D48","v":0}]
[]
[null,null,{"$f":"Translation!D39","v":0},{"$nulls":5},"Black",null,{"$f":"I29","v":"Black"},null,null,{"$f":"I29","v":"Black"},null,null,"SL 350"]
[null,null,{"$f":"Translation!D40","v":0},{"$nulls":5},"RUN 600",null,0,3540,null,0,3265,null,"SL 420"]
[{"$nulls":10},2376,4240,null,2376,3975]
[]
[{"$nulls":10},{"$f":"I30","v":"RUN 600"},null,null,{"$f":"I30","v":"RUN 600"}]
[{"$nulls":10},0,3100,null,0,2950]
[{"$nulls":10},2126,4240,null,2126,4060]
{"$rows_empty":10}
[{"$nulls":5},"Version of SL system",null,"SL wersja","SL version"]
[]
[]
[{"$nulls":9},"wanneer de deurstopper wordt gebruikt"]